[Event "POL-chT 2nd League-4 2020"]
[Site "Poronin"]
[Date "2020.09.07"]
[Round "3.18"]
[White "Krzysztynska, Anna"]
[Black "Kostecka, Marika"]
[Result "1/2-1/2"]
[ECO "B53"]
[WhiteElo "1867"]
[BlackElo "1917"]
[Annotator "ChessBase"]
[PlyCount "143"]
[EventDate "2020.09.05"]
[EventType "team-tourn"]
[EventCountry "POL"]
[SourceTitle "playchess.com"]
[Source "ChessBase"]
[SourceQuality "1"]
[TimeControl "40/5400+30:900+30"]

1. e4 {[%emt 0:00:00]} c5 {[%emt 0:00:00]} 2. Nf3 {[%emt 0:00:00]} d6 {[%emt 0:00:00]} 3. d4 {[%emt 0:00:00]} cxd4 {[%emt 0:00:00]} 4. Qxd4 {[%emt 0:00:05]} Nc6 {[%emt 0:00:00]} 5. Bb5 {[%emt 0:00:10]} Bd7 {[%emt 0:00:00]} 6. Qd3 {[%emt 0:00:15]} a6 {[%emt 0:02:01]} 7. Ba4 {[%emt 0:02:38]} h6 {[%emt 0:09:48]} 8. Nc3 {[%emt 0:02:09]} Nf6 {[%emt 0:02:08]} 9. h3 {[%emt 0:05:35]} e6 {[%emt 0:05:40]} 10. Be3 {[%emt 0:02:46]} Be7 {[%emt 0:05:16]} 11. O-O-O {[%emt 0:05:23]} Rc8 {[%emt 0:12:03]} 12. Bxc6 {[%emt 0:07:09]} Bxc6 {[%emt 0:01:22]} 13. Nd4 {[%emt 0:02:46]} b5 {[%emt 0:11:02]} 14. Nxc6 {[%emt 0:16:02]} Rxc6 {[%emt 0:00:05]} 15. f4 {[%emt 0:00:40]} b4 {[%emt 0:02:19]} 16. Ne2 {[%emt 0:02:08]} Qa5 {[%emt 0:12:29]} 17. Nd4 {[%emt 0:05:29]} Rc8 {[%emt 0:00:41]} 18. Kb1 {[%emt 0:00:24]} Qa4 {[%emt 0:08:38]} 19. f5 {[%emt 0:09:41]} e5 {[%emt 0:00:57]} 20. Nb3 {[%emt 0:05:22]} Qc6 {[%emt 0:01:10]} 21. Nd2 {[%emt 0:05:42]} a5 {[%emt 0:02:41]} 22. Rhe1 {[%emt 0:01:46]} d5 {[%emt 0:06:12]} 23. exd5 {[%emt 0:06:18]} Nxd5 {[%emt 0:00:07]} 24. Ne4 {[%emt 0:03:27]} Rd8 {[%emt 0:00:41]} 25. Qe2 {[%emt 0:01:01]} a4 {[%emt 0:05:39]} 26. Rd3 {[%emt 0:04:39]} a3 {[%emt 0:02:46]} 27. b3 {[%emt 0:02:51]} Nc7 {[%emt 0:00:18]} 28. Rxd8+ {[%emt 0:00:22]} Bxd8 {[%emt 0:00:07]} 29. Bc5 {[%emt 0:00:58]} Be7 {[%emt 0:04:38]} 30. Qc4 {[%emt 0:01:55]} Nd5 {[%emt 0:00:52]} 31. Bxe7 {[%emt 0:01:37]} Qxc4 {[%emt 0:00:58]} 32. bxc4 {[%emt 0:00:01]} Nxe7 {[%emt 0:00:08]} 33. Nd6+ {[%emt 0:00:16]} Kd7 {[%emt 0:00:42]} 34. Nxf7 {[%emt 0:00:02]} Rc8 {[%emt 0:00:42]} 35. Nxe5+ {[%emt 0:00:17]} Kd6 {[%emt 0:02:29]} 36. g4 {[%emt 0:04:29]} Nc6 {[%emt 0:01:26]} 37. Nd3 Nd4 38. c5+ {[%emt 0:01:19]} Kd5 {[%emt 0:01:09]} 39. Nxb4+ {[%emt 0:01:33]} Kc4 {[%emt 0:00:19]} 40. Nd3 {[%emt 0:00:00]} Kc3 {[%emt 0:00:00]} 41. Nc1 {[%emt 0:07:16]} Nxc2 {[%emt 0:01:00]} 42. Re2 {[%emt 0:06:10]} Nd4 {[%emt 0:06:35]} 43. Re3+ {[%emt 0:01:41]} Kb4 {[%emt 0:00:07]} 44. Nd3+ {[%emt 0:01:47]} Kc4 {[%emt 0:02:47]} 45. Ne5+ {[%emt 0:01:03]} Kd5 {[%emt 0:00:10]} 46. Nf3 {[%emt 0:01:20]} Nb5 {[%emt 0:01:32]} 47. Re5+ {[%emt 0:00:49]} Kc4 {[%emt 0:00:33]} 48. Nd2+ {[%emt 0:00:45]} Kc3 {[%emt 0:00:20]} 49. Nb3 {[%emt 0:00:18]} Rd8 {[%emt 0:01:34]} 50. Re3+ {[%emt 0:00:14]} Kb4 {[%emt 0:01:30]} 51. Kc2 {[%emt 0:00:36]} Nc7 {[%emt 0:00:33]} 52. Re4+ {[%emt 0:00:51]} Kb5 {[%emt 0:00:05]} 53. Rd4 {[%emt 0:00:37]} Re8 {[%emt 0:00:57]} 54. Rd7 {[%emt 0:00:17]} Na6 {[%emt 0:00:23]} 55. Rb7+ {[%emt 0:00:18]} Kc4 {[%emt 0:00:16]} 56. Nd2+ {[%emt 0:00:28]} Kxc5 {[%emt 0:00:17]} 57. Rb3 {[%emt 0:00:55]} Nb4+ {[%emt 0:00:10]} 58. Kd1 {[%emt 0:00:14]} Nxa2 {[%emt 0:01:59]} 59. Rxa3 {[%emt 0:00:08]} Nb4 {[%emt 0:00:07]} 60. Ra7 {[%emt 0:00:20]} Nd3 {[%emt 0:00:39]} 61. Rxg7 {[%emt 0:01:20]} Nf2+ {[%emt 0:00:31]} 62. Kc2 {[%emt 0:00:05]} Nxh3 {[%emt 0:00:12]} 63. f6 {[%emt 0:00:35]} Kd6 {[%emt 0:02:24]} 64. Rg6 {[%emt 0:00:40]} Rc8+ {[%emt 0:00:58]} 65. Kd1 {[%emt 0:00:13]} Ke6 {[%emt 0:01:29]} 66. Ne4 {[%emt 0:00:58]} Rc4 {[%emt 0:01:10]} 67. Ng3 {[%emt 0:00:34]} Nf2+ {[%emt 0:00:21]} 68. Ke2 {[%emt 0:00:15]} Nxg4 {[%emt 0:00:39]} 69. Nh5 {[%emt 0:00:17]} Kf7 {[%emt 0:01:02]} 70. Rg7+ {[%emt 0:00:35]} Kf8 {[%emt 0:00:12]} 71. Rg6 {[%emt 0:00:53]} Kf7 {[%emt 0:00:12]} 72. Rg7+ {[%emt 0:00:27]} 1/2-1/2

[Event "POL-chT 2nd League-4 2020"]
[Site "Poronin"]
[Date "2020.09.07"]
[Round "3.19"]
[White "Bilczewski, Kacper"]
[Black "Smagalski, Slawomir"]
[Result "1-0"]
[ECO "C54"]
[WhiteElo "2101"]
[BlackElo "1940"]
[Annotator "ChessBase"]
[PlyCount "131"]
[EventDate "2020.09.05"]
[EventType "team-tourn"]
[EventCountry "POL"]
[SourceTitle "playchess.com"]
[Source "ChessBase"]
[SourceQuality "1"]
[TimeControl "40/5400+30:900+30"]

1. e4 {[%emt 0:00:00]} e5 {[%emt 0:00:00]} 2. Nf3 {[%emt 0:00:00]} Nc6 {[%emt 0:00:00]} 3. Bc4 {[%emt 0:00:00]} Bc5 {[%emt 0:00:00]} 4. c3 {[%emt 0:00:00]} Nf6 {[%emt 0:00:00]} 5. d3 {[%emt 0:00:00]} d6 {[%emt 0:00:14]} 6. O-O {[%emt 0:00:00]} O-O {[%emt 0:00:14]} 7. b4 {[%emt 0:00:07]} Bb6 {[%emt 0:00:06]} 8. a4 {[%emt 0:00:05]} a5 {[%emt 0:00:12]} 9. b5 {[%emt 0:00:06]} Ne7 {[%emt 0:00:08]} 10. Nbd2 {[%emt 0:01:32]} Ng6 {[%emt 0:02:49]} 11. Bb3 {[%emt 0:00:08]} c6 {[%emt 0:01:04]} 12. Qc2 {[%emt 0:20:30]} h6 {[%emt 0:05:26]} 13. Ba3 {[%emt 0:09:52]} Be6 {[%emt 0:09:04]} 14. Nc4 {[%emt 0:09:23]} c5 {[%emt 0:07:54]} 15. d4 {[%emt 0:21:29]} Bxc4 {[%emt 0:10:39]} 16. Bxc4 {[%emt 0:00:05]} Qe7 {[%emt 0:00:06]} 17. dxe5 {[%emt 0:01:31]} dxe5 {[%emt 0:00:18]} 18. Rad1 {[%emt 0:00:30]} Bc7 {[%emt 0:01:28]} 19. Rd2 {[%emt 0:02:38]} b6 {[%emt 0:01:04]} 20. Rfd1 {[%emt 0:00:19]} Rad8 {[%emt 0:00:50]} 21. g3 {[%emt 0:00:51]} Rxd2 {[%emt 0:01:37]} 22. Rxd2 {[%emt 0:00:07]} Rd8 {[%emt 0:00:09]} 23. Rxd8+ {[%emt 0:02:06]} Qxd8 {[%emt 0:01:12]} 24. Qd3 {[%emt 0:00:26]} Qxd3 {[%emt 0:01:30]} 25. Bxd3 {[%emt 0:00:04]} Ne8 {[%emt 0:00:26]} 26. Nd2 {[%emt 0:01:02]} Nd6 {[%emt 0:00:31]} 27. Kf1 {[%emt 0:01:21]} Kf8 {[%emt 0:05:35]} 28. Ke2 {[%emt 0:00:09]} Ke7 {[%emt 0:00:06]} 29. Bc1 {[%emt 0:01:35]} f6 {[%emt 0:02:13]} 30. Nf1 {[%emt 0:02:25]} Ke6 {[%emt 0:02:27]} 31. Ne3 {[%emt 0:01:03]} Ne7 {[%emt 0:00:23]} 32. Bb1 {[%emt 0:00:27]} f5 {[%emt 0:04:44]} 33. exf5+ {[%emt 0:03:48]} Ndxf5 {[%emt 0:01:10]} 34. Nxf5 {[%emt 0:01:07]} Nxf5 {[%emt 0:00:04]} 35. Ba2+ {[%emt 0:00:18]} Kf6 {[%emt 0:02:11]} 36. Bd5 {[%emt 0:00:40]} Ne7 {[%emt 0:04:19]} 37. Be4 {[%emt 0:01:58]} Ke6 {[%emt 0:00:09]} 38. Kd3 {[%emt 0:00:58]} Bd6 {[%emt 0:10:39]} 39. f3 {[%emt 0:01:11]} Bc7 {[%emt 0:01:36]} 40. Be3 {[%emt 0:00:00]} Bd6 {[%emt 0:00:00]} 41. g4 {[%emt 0:02:24]} Nd5 {[%emt 0:15:51]} 42. Bxd5+ {[%emt 0:03:07]} Kxd5 {[%emt 0:00:32]} 43. c4+ {[%emt 0:00:05]} Ke6 {[%emt 0:00:13]} 44. h4 {[%emt 0:00:39]} Be7 {[%emt 0:00:50]} 45. h5 {[%emt 0:00:10]} Bd8 {[%emt 0:06:35]} 46. Ke4 {[%emt 0:00:09]} Bg5 {[%emt 0:09:16]} 47. Bf2 {[%emt 0:00:17]} Bf4 {[%emt 0:01:22]} 48. Bh4 {[%emt 0:01:07]} Bg5 {[%emt 0:00:42]} 49. Be1 {[%emt 0:00:08]} Bf4 {[%emt 0:01:21]} 50. Bc3 {[%emt 0:00:07]} Bg3 {[%emt 0:00:18]} 51. Bd2 {[%emt 0:00:05]} Bh4 {[%emt 0:02:39]} 52. Be3 {[%emt 0:04:58]} Bg5 {[%emt 0:00:07]} 53. Bf2 {[%emt 0:00:14]} Bf4 {[%emt 0:00:02]} 54. Bh4 {[%emt 0:00:16]} Bg5 {[%emt 0:00:06]} 55. Bg3 {[%emt 0:00:10]} Bf6 {[%emt 0:04:01]} 56. Bh2 {[%emt 0:00:05]} g5 {[%emt 0:03:12]} 57. hxg6 {[%emt 0:00:06]} Bg7 {[%emt 0:00:04]} 58. Bg3 {[%emt 0:00:07]} Bf6 {[%emt 0:00:13]} 59. Be1 {[%emt 0:00:05]} Bh8 {[%emt 0:00:27]} 60. Bh4 {[%emt 0:01:03]} Bf6 {[%emt 0:00:42]} 61. Bxf6 {[%emt 0:00:19]} Kxf6 {[%emt 0:00:04]} 62. g7 {[%emt 0:00:06]} Kxg7 {[%emt 0:00:06]} 63. Kxe5 {[%emt 0:00:03]} Kg6 {[%emt 0:00:49]} 64. f4 {[%emt 0:00:05]} h5 {[%emt 0:00:26]} 65. gxh5+ {[%emt 0:00:07]} Kxh5 {[%emt 0:00:03]} 66. f5 {[%emt 0:00:07]} 1-0

[Event "POL-chT 2nd League-4 2020"]
[Site "Poronin"]
[Date "2020.09.07"]
[Round "3.20"]
[White "Papka, Sebastian"]
[Black "Samborski, Henryk"]
[Result "1-0"]
[ECO "E12"]
[WhiteElo "2139"]
[BlackElo "2069"]
[Annotator "ChessBase"]
[PlyCount "137"]
[EventDate "2020.09.05"]
[EventType "team-tourn"]
[EventCountry "POL"]
[SourceTitle "playchess.com"]
[Source "ChessBase"]
[SourceQuality "1"]
[TimeControl "40/5400+30:900+30"]

1. d4 {[%emt 0:00:00]} Nf6 {[%emt 0:00:19]} 2. c4 {[%emt 0:00:00]} e6 {[%emt 0:01:41]} 3. Nf3 {[%emt 0:00:00]} b6 {[%emt 0:00:08]} 4. a3 {[%emt 0:00:23]} Bb7 {[%emt 0:00:35]} 5. Nc3 {[%emt 0:00:13]} Ne4 {[%emt 0:01:45]} 6. Nxe4 {[%emt 0:03:59]} Bxe4 {[%emt 0:00:05]} 7. e3 {[%emt 0:04:22]} Be7 {[%emt 0:01:06]} 8. Bd3 {[%emt 0:02:45]} Bxd3 {[%emt 0:03:11]} 9. Qxd3 {[%emt 0:00:04]} d5 {[%emt 0:08:56]} 10. O-O {[%emt 0:01:19]} O-O {[%emt 0:00:18]} 11. Bd2 {[%emt 0:03:14]} Nd7 {[%emt 0:07:14]} 12. cxd5 {[%emt 0:04:40]} exd5 {[%emt 0:00:09]} 13. b4 {[%emt 0:03:17]} Bd6 {[%emt 0:04:37]} 14. b5 {[%emt 0:04:15]} Qe7 {[%emt 0:01:24]} 15. Rfc1 {[%emt 0:01:54]} Qe4 {[%emt 0:03:30]} 16. Qb3 {[%emt 0:01:46]} a5 {[%emt 0:03:45]} 17. bxa6 {[%emt 0:02:40]} Rfc8 {[%emt 0:33:01]} 18. a4 {[%emt 0:07:50]} Rxa6 {[%emt 0:02:06]} 19. Qb5 {[%emt 0:11:19]} Nb8 {[%emt 0:00:11]} 20. Bb4 {[%emt 0:07:07]} Bxb4 {[%emt 0:03:21]} 21. Qxb4 {[%emt 0:00:06]} c5 {[%emt 0:00:13]} 22. Qb5 {[%emt 0:00:46]} Qe7 {[%emt 0:03:06]} 23. Ne5 {[%emt 0:02:38]} Qd6 {[%emt 0:00:55]} 24. Nd3 {[%emt 0:09:03]} c4 {[%emt 0:00:25]} 25. a5 {[%emt 0:05:01]} Rxa5 {[%emt 0:06:02]} 26. Rxa5 {[%emt 0:00:17]} bxa5 {[%emt 0:00:02]} 27. Qxa5 {[%emt 0:00:32]} Nc6 {[%emt 0:01:24]} 28. Qa6 {[%emt 0:01:34]} Qc7 {[%emt 0:01:37]} 29. Nf4 {[%emt 0:00:58]} Ne7 {[%emt 0:02:47]} 30. Ne2 {[%emt 0:02:59]} g6 {[%emt 0:04:38]} 31. g3 {[%emt 0:00:27]} Qc6 {[%emt 0:00:09]} 32. Qa3 {[%emt 0:06:12]} Nf5 {[%emt 0:00:32]} 33. Nc3 {[%emt 0:01:46]} h5 {[%emt 0:03:34]} 34. Qa5 {[%emt 0:02:43]} Ne7 {[%emt 0:00:35]} 35. h4 {[%emt 0:01:11]} Ra8 {[%emt 0:00:47]} 36. Qb4 {[%emt 0:00:21]} Qe6 {[%emt 0:01:22]} 37. Qb7 {[%emt 0:02:07]} Ra3 {[%emt 0:01:10]} 38. Qb4 {[%emt 0:03:55]} Rb3 {[%emt 0:00:18]} 39. Qa4 {[%emt 0:00:33]} Kg7 {[%emt 0:00:28]} 40. Qa5 {[%emt 0:00:00]} Qf5 {[%emt 0:00:00]} 41. Qa2 {[%emt 0:07:25]} Nc6 {[%emt 0:05:06]} 42. Qc2 {[%emt 0:03:13]} Qd7 {[%emt 0:02:47]} 43. Rb1 {[%emt 0:02:39]} Qb7 {[%emt 0:02:37]} 44. Rc1 {[%emt 0:01:21]} Nb4 {[%emt 0:02:07]} 45. Qe2 {[%emt 0:02:13]} Nd3 {[%emt 0:00:05]} 46. Rc2 {[%emt 0:00:18]} Rb1+ {[%emt 0:00:32]} 47. Nxb1 {[%emt 0:01:11]} Qxb1+ {[%emt 0:00:03]} 48. Kh2 {[%emt 0:00:11]} f5 {[%emt 0:04:31]} 49. Ra2 {[%emt 0:02:19]} Qb7 {[%emt 0:00:39]} 50. Qd2 {[%emt 0:00:38]} Qc7 {[%emt 0:01:03]} 51. Qc3 {[%emt 0:00:18]} Qe7 {[%emt 0:00:23]} 52. Kg1 {[%emt 0:01:52]} Kh6 {[%emt 0:00:09]} 53. Ra8 {[%emt 0:00:50]} Qb7 {[%emt 0:00:35]} 54. Qa3 Qb4 {[%emt 0:00:13]} 55. Qxb4 {[%emt 0:01:23]} Nxb4 {[%emt 0:00:03]} 56. Kf1 {[%emt 0:00:35]} Kg7 {[%emt 0:00:18]} 57. Ra5 {[%emt 0:00:20]} c3 {[%emt 0:01:49]} 58. Ke2 {[%emt 0:00:37]} c2 {[%emt 0:00:04]} 59. Kd2 {[%emt 0:01:17]} c1=Q+ {[%emt 0:00:31]} 60. Kxc1 {[%emt 0:00:03]} Nd3+ {[%emt 0:00:08]} 61. Kd2 {[%emt 0:00:32]} Nxf2 {[%emt 0:00:04]} 62. Ke2 {[%emt 0:00:18]} Ne4 {[%emt 0:00:05]} 63. Kf3 {[%emt 0:00:13]} Nf6 {[%emt 0:02:09]} 64. Kf4 {[%emt 0:00:17]} Kf7 {[%emt 0:01:56]} 65. Ra7+ {[%emt 0:00:14]} Kf8 {[%emt 0:00:18]} 66. Kg5 {[%emt 0:00:31]} Ne4+ {[%emt 0:00:13]} 67. Kxg6 {[%emt 0:00:13]} Nxg3 {[%emt 0:00:05]} 68. Rf7+ {[%emt 0:00:24]} Ke8 {[%emt 0:00:10]} 69. Rxf5 {[%emt 0:00:20]} 1-0

[Event "POL-chT 2nd League-4 2020"]
[Site "Poronin"]
[Date "2020.09.07"]
[Round "3.21"]
[White "Lamza, Zenon"]
[Black "Walaszczyk, Witold"]
[Result "1-0"]
[ECO "E12"]
[WhiteElo "2220"]
[BlackElo "2028"]
[Annotator "ChessBase"]
[PlyCount "62"]
[EventDate "2020.09.05"]
[EventType "team-tourn"]
[EventCountry "POL"]
[SourceTitle "playchess.com"]
[Source "ChessBase"]
[SourceQuality "1"]
[TimeControl "40/5400+30:900+30"]

1. d4 {[%emt 0:00:58]} Nf6 {[%emt 0:00:00]} 2. Nf3 {[%emt 0:00:07]} e6 {[%emt 0:00:05]} 3. c4 {[%emt 0:01:14]} b6 {[%emt 0:00:07]} 4. a3 {[%emt 0:00:07]} Bb7 {[%emt 0:01:46]} 5. Nc3 {[%emt 0:00:11]} Be7 {[%emt 0:01:58]} 6. d5 {[%emt 0:01:10]} exd5 {[%emt 0:03:39]} 7. cxd5 {[%emt 0:00:06]} O-O {[%emt 0:00:11]} 8. e4 {[%emt 0:00:13]} d6 {[%emt 0:00:18]} 9. Bd3 {[%emt 0:01:03]} c6 {[%emt 0:00:37]} 10. dxc6 {[%emt 0:03:46]} Nxc6 {[%emt 0:00:15]} 11. O-O {[%emt 0:02:21]} Ne5 {[%emt 0:02:28]} 12. Nxe5 {[%emt 0:00:49]} dxe5 {[%emt 0:00:09]} 13. Bg5 {[%emt 0:01:29]} Nd7 {[%emt 0:07:17]} 14. Bxe7 {[%emt 0:10:50]} Qxe7 {[%emt 0:00:07]} 15. Bc4 {[%emt 0:00:27]} Rad8 {[%emt 0:08:08]} 16. Qe2 {[%emt 0:01:50]} Nf6 {[%emt 0:04:25]} 17. Rad1 {[%emt 0:18:55]} Rd4 {[%emt 0:01:17]} 18. Nd5 {[%emt 0:03:58]} Bxd5 {[%emt 0:16:26]} 19. exd5 {[%emt 0:05:34]} Qc5 {[%emt 0:02:41]} 20. Rxd4 {[%emt 0:00:14]} exd4 {[%emt 0:00:16]} 21. b4 {[%emt 0:00:12]} Qc7 {[%emt 0:02:52]} 22. Rd1 {[%emt 0:03:43]} Re8 {[%emt 0:00:12]} 23. Qa2 {[%emt 0:05:54]} Re7 {[%emt 0:17:05]} 24. g3 {[%emt 0:03:50]} Ng4 {[%emt 0:09:50]} 25. Rxd4 {[%emt 0:06:19]} Re1+ {[%emt 0:03:38]} 26. Kg2 {[%emt 0:00:52]} Qe5 {[%emt 0:12:13]} 27. Rxg4 {[%emt 0:03:01]} h5 {[%emt 0:04:02]} 28. Rf4 {[%emt 0:07:58]} g5 {[%emt 0:00:05]} 29. Rf3 {[%emt 0:00:46]} Qd4 {[%emt 0:00:05]} 30. d6 {[%emt 0:06:37]} g4 {[%emt 0:02:12]} 31. Rf4 {[%emt 0:01:03]} Qd1 1-0

[Event "POL-chT 2nd League-4 2020"]
[Site "Poronin"]
[Date "2020.09.07"]
[Round "3.22"]
[White "Swiatnicki, Andrzej"]
[Black "Radecki, Adam"]
[Result "1/2-1/2"]
[ECO "A45"]
[WhiteElo "2004"]
[BlackElo "2002"]
[Annotator "ChessBase"]
[PlyCount "102"]
[EventDate "2020.09.05"]
[EventType "team-tourn"]
[EventCountry "POL"]
[SourceTitle "playchess.com"]
[Source "ChessBase"]
[SourceQuality "1"]
[TimeControl "40/5400+30:900+30"]

1. d4 Nf6 2. Nc3 d6 3. Bg5 Nbd7 4. Nf3 e5 5. e4 Be7 6. Be2 O-O 7. O-O c6 8. dxe5 dxe5 9. a3 Qc7 10. Nd2 Rd8 11. Qc1 Nc5 12. f4 exf4 13. Bxf4 Bd6 14. Nc4 Bxf4 15. Qxf4 Qxf4 16. Rxf4 Be6 17. b4 Rd4 18. Na5 Ncxe4 19. Bf3 Bd5 20. Nxe4 Nxe4 21. Re1 f5 22. Rxf5 Nd6 23. Bxd5+ cxd5 24. Rfe5 Rc8 25. Nb3 Re4 26. R1xe4 Nxe4 27. Nd4 Rc3 28. Rxd5 Rxa3 29. g3 Ra4 30. Rd8+ Kf7 31. Rd7+ Kf6 32. Rxb7 Nd6 33. Rd7 Nc4 34. Nc6 Ra2 35. c3 Nd2 36. Rxa7 Nf3+ 37. Kf1 Nxh2+ 38. Ke1 Rb2 39. Nd4 Ng4 40. Kd1 Ne5 41. Ra6+ Kf7 42. Ra5 Nd3 43. Rd5 Nf2+ 44. Ke1 Ne4 45. Rd7+ Kf6 46. Rc7 Nxg3 47. b5 Ne4 48. c4 Ke5 49. Nc6+ Kd6 50. Rxg7 Kc5 51. Rxh7 Kxc4 1/2-1/2

[Event "POL-chT 2nd League-4 2020"]
[Site "Poronin"]
[Date "2020.09.07"]
[Round "3.23"]
[White "Panek, Bartosz"]
[Black "Smagalski, Jaroslaw"]
[Result "0-1"]
[ECO "B00"]
[WhiteElo "1979"]
[BlackElo "1843"]
[Annotator "ChessBase"]
[PlyCount "106"]
[EventDate "2020.09.05"]
[EventType "team-tourn"]
[EventCountry "POL"]
[SourceTitle "playchess.com"]
[Source "ChessBase"]
[SourceQuality "1"]
[TimeControl "40/5400+30:900+30"]

1. e4 Nc6 2. Nf3 d5 3. exd5 Qxd5 4. Be2 Bg4 5. O-O O-O-O 6. c4 Qd7 7. b4 Nf6 8. b5 Bxf3 9. Bxf3 Ne5 10. Be2 e6 11. d4 Qxd4 12. Qb3 Bd6 13. g3 Qe4 14. Nc3 Qf5 15. Kg2 h5 16. f3 Bc5 17. a4 Nd3 18. a5 Qe5 19. b6 a6 20. bxc7 Qxc7 21. Bg5 h4 22. g4 Nf4+ 23. Bxf4 Qxf4 24. Rab1 Rd7 25. Kh1 Bd6 26. Rf2 Bc5 27. Rff1 Bd6 28. Rf2 Nxg4 29. Rbf1 Nxf2+ 30. Rxf2 Bc5 31. Rf1 Bd6 32. Rf2 Rh6 33. Na4 Rg6 34. Nb6+ Kd8 35. Nxd7 Qg5 36. Qd1 Kxd7 37. f4 Qc5 38. Rg2 Rxg2 39. Kxg2 Ke7 40. Qb3 Qxa5 41. Qxb7+ Kf6 42. Qb2+ e5 43. Qc2 exf4 44. h3 Qe5 45. Bg4 g6 46. Qa4 a5 47. Qb5 Bc5 48. Qxa5 Qb2+ 49. Kf3 Qf2+ 50. Ke4 Qd4+ 51. Kf3 Qe3+ 52. Kg2 f3+ 53. Bxf3 Qg1# 0-1

[Event "POL-chT 2nd League-4 2020"]
[Site "Poronin"]
[Date "2020.09.07"]
[Round "3.24"]
[White "Bukowska, Katarzyna"]
[Black "Stebel, Agata"]
[Result "1/2-1/2"]
[ECO "B34"]
[WhiteElo "1887"]
[BlackElo "1871"]
[Annotator "NA"]
[PlyCount "74"]
[EventDate "2020.09.05"]
[EventType "team-tourn"]
[EventCountry "POL"]
[SourceTitle "playchess.com"]
[Source "ChessBase"]
[SourceQuality "1"]
[TimeControl "40/5400+30:900+30"]

1. e4 c5 2. Nf3 Nc6 3. Nc3 g6 4. d4 cxd4 5. Nxd4 Bg7 6. Nb3 Nf6 7. Be2 O-O 8. O-O d6 9. Kh1 b6 10. f4 Bb7 11. Bf3 e5 12. Nd5 Ba6 13. Rf2 Nxd5 14. Qxd5 Rc8 15. c3 Ne7 16. Qd1 f5 17. Be3 Qc7 18. Qe1 Bd3 19. fxe5 dxe5 20. Rd1 fxe4 21. Be2 Rxf2 22. Bxf2 Rd8 23. Nc1 Bxe2 24. Nxe2 Nf5 25. Ng3 Nxg3+ 26. Bxg3 Rd3 27. Rb1 e3 28. Rd1 Qd6 29. Rxd3 Qxd3 30. h3 Bh6 31. Kh2 e2 32. Bxe5 Bd2 33. Qf2 e1=Q 34. Qf6 Qd7 35. Qh8+ Kf7 36. Qf6+ Ke8 37. Qh8+ Ke7 1/2-1/2

[Event "POL-chT 2nd League-4 2020"]
[Site "Poronin"]
[Date "2020.09.08"]
[Round "4.1"]
[White "Polok, Kacper"]
[Black "Brzezinski, Mateusz"]
[Result "1-0"]
[ECO "B10"]
[WhiteElo "2288"]
[BlackElo "2230"]
[Annotator "ChessBase"]
[PlyCount "61"]
[EventDate "2020.09.05"]
[EventType "team-tourn"]
[EventCountry "POL"]
[SourceTitle "playchess.com"]
[Source "ChessBase"]
[SourceQuality "1"]
[TimeControl "40/5400+30:900+30"]

1. e4 {[%emt 0:00:00]} c6 {[%emt 0:00:00]} 2. d3 {[%emt 0:06:33]} g6 {[%emt 0:00:05]} 3. g3 {[%emt 0:00:33]} Bg7 {[%emt 0:00:13]} 4. Bg2 {[%emt 0:00:15]} d5 {[%emt 0:04:29]} 5. Nd2 {[%emt 0:01:22]} Nf6 {[%emt 0:07:01]} 6. Ngf3 {[%emt 0:06:23]} O-O {[%emt 0:01:41]} 7. O-O {[%emt 0:01:06]} dxe4 {[%emt 0:12:54]} 8. dxe4 {[%emt 0:01:22]} Be6 {[%emt 0:11:08]} 9. Qe2 {[%emt 0:09:03]} Qc8 {[%emt 0:02:33]} 10. Ng5 {[%emt 0:07:26]} Bg4 {[%emt 0:06:08]} 11. f3 {[%emt 0:01:06]} h6 {[%emt 0:07:21]} 12. Nxf7 {[%emt 0:04:57]} Rxf7 {[%emt 0:05:50]} 13. fxg4 {[%emt 0:00:14]} Qxg4 {[%emt 0:00:16]} 14. Bf3 {[%emt 0:06:54]} Qe6 {[%emt 0:05:23]} 15. Nb3 {[%emt 0:02:35]} Nbd7 {[%emt 0:02:15]} 16. Bf4 {[%emt 0:04:05]} Ne5 {[%emt 0:07:46]} 17. Nc5 {[%emt 0:01:25]} Qd6 {[%emt 0:01:24]} 18. Be3 {[%emt 0:03:05]} Nxf3+ {[%emt 0:02:54]} 19. Rxf3 {[%emt 0:01:54]} Qe5 {[%emt 0:02:01]} 20. Qc4 {[%emt 0:04:17]} Nd5 {[%emt 0:05:46]} 21. Raf1 {[%emt 0:17:05]} Raf8 {[%emt 0:00:56]} 22. Nd7 {[%emt 0:01:47]} Nxe3 {[%emt 0:05:20]} 23. Rxf7 {[%emt 0:01:02]} Nxc4 {[%emt 0:01:52]} 24. Rxf8+ {[%emt 0:00:14]} Kh7 {[%emt 0:01:16]} 25. Nxe5 {[%emt 0:00:20]} Nxe5 {[%emt 0:00:03]} 26. Rb8 {[%emt 0:01:18]} b6 {[%emt 0:00:19]} 27. Rb7 {[%emt 0:00:08]} g5 {[%emt 0:00:09]} 28. Rxa7 {[%emt 0:00:24]} Kg6 {[%emt 0:00:12]} 29. Rxe7 {[%emt 0:00:22]} Ng4 {[%emt 0:00:04]} 30. Rxg7+ {[%emt 0:00:10]} Kxg7 {[%emt 0:00:04]} 31. Rd1 {[%emt 0:00:14]} 1-0